bitfinex/quotes_SOLUSD_20220208
["timestamp","ask_amount","ask_price","bid_price","bid_amount"]
[1644288958509,24.222,117.18,117.08,54.76809346]
[1644288958710,24.222,117.18,117.1,12.8081]
[1644288959109,67.37362143,117.18,117.11,38.62816591]
[1644288959309,24.222,117.18,117.11,38.62816591]
[1644288959912,24.222,117.18,117.11,51.43506591]
[1644288960110,12.8085,117.19,117.11,51.43506591]
[1644288960309,12.8058,117.21,117.11,51.68506591]
[1644288960510,37.0816,117.21,117.13,44.66362621]
[1644288961412,39.34783319,117.2,117.13,44.66362621]
[1644288962210,37.0816,117.21,117.13,44.66362621]
[1644288962414,24.2758,117.21,117.13,57.46872621]
[1644288962610,24.5258,117.21,117.13,57.46872621]
[1644288963213,64.65789251,117.21,117.13,57.46872621]
[1644288963911,24.2758,117.21,117.13,57.46872621]
[1644288964111,1.1888077,117.23,117.13,63.71872621]
[1644288964312,46.8030077,117.24,117.14,24.7969]
[1644288964512,46.8030077,117.24,117.16,12.8019]
[1644288964713,45.6142,117.24,117.16,12.8019]
[1644288964913,91.74079752,117.24,117.17,38.62816591]
[1644288965212,105.73220522,117.24,117.17,38.62816591]
[1644288965711,104.54339752,117.24,117.15,0.024]
[1644288965911,105.73220522,117.24,117.15,0.024]
[1644288966715,105.98220522,117.24,117.15,0.024]
[1644288966913,105.98220522,117.24,117.15,35.92015255]
[1644288972118,105.98220522,117.24,117.15,0.024]
[1644288972521,13.4788077,117.23,117.15,0.024]
[1644288972721,23.1984,117.22,117.13,0.024]
[1644288972920,12.8072,117.2,117.13,0.024]
[1644288973122,40.54738897,117.19,117.13,0.024]
[1644288974621,53.35488897,117.19,117.13,0.024]
[1644288975623,53.35488897,117.19,117.11,23.0535]
[1644288976323,53.60488897,117.19,117.11,23.0535]
[1644288976523,53.60488897,117.19,117.11,58.03653748]
[1644288978029,53.35488897,117.19,117.11,58.03653748]
[1644288979128,53.35488897,117.19,117.11,57.03653748]
[1644288981731,53.60488897,117.19,117.11,57.03653748]
[1644288982933,53.60488897,117.19,117.11,22.0535]
[1644288983133,53.60488897,117.19,117.11,0.024]
[1644288983359,80.33436793,117.19,117.11,0.024]
[1644288983535,1.1888077,117.18,117.11,0.024]
[1644288983735,12.8142,117.16,117.11,0.024]
[1644288983936,35.78036782,117.15,117.09,1.1858561]
[1644288984137,37.90134678,117.15,117.09,1.1618561]
[1644288984334,61.54834678,117.15,117.09,1.1618561]
[1644288985134,12.8142,117.14,117.09,1.1618561]
[1644288985537,13.0642,117.14,117.09,1.1618561]
[1644288988840,25.3542,117.14,117.09,1.1618561]
[1644288989441,25.1042,117.14,117.09,1.1618561]
[1644288992071,25.3542,117.14,117.09,1.1618561]
[1644288995474,27.47517896,117.14,117.09,1.1618561]
[1644288996075,52.35287896,117.14,117.09,1.1618561]
[1644288997677,50.2319,117.14,117.09,1.1618561]
[1644289000782,51.4207077,117.14,117.09,1.1618561]
[1644289001182,50.2319,117.14,117.09,1.1618561]
[1644289001383,51.4207077,117.14,117.09,1.1618561]
[1644289002884,53.54168666,117.14,117.09,1.1618561]
[1644289004886,53.54168666,117.14,117.04,34.96074839]
[1644289005086,1.1888077,117.13,117.04,0.024]
[1644289005285,12.8223,117.11,117.01,0.024]
[1644289005485,36.4052077,117.1,117.01,0.024]
[1644289005684,201.69418666,117.1,117.01,0.024]
[1644289005887,3.30978666,117.09,117.01,0.024]
[1644289006186,198.3844,117.1,117.01,0.024]
[1644289006187,47.89330854,117.08,117.01,0.024]
[1644289006386,12.29,117.07,117.0,500.024]
[1644289007986,48.25776012,117.04,117.0,500.024]
[1644289008187,12.29,117.03,117.0,500.0]
[1644289008888,48.25776012,117.04,117.0,500.0]
[1644289009688,12.29,117.05,117.0,500.0]
[1644289010490,25.1127,117.05,117.0,500.0]
[1644289010689,25.1127,117.05,117.0,546.10663822]
[1644289010888,12.29,117.05,117.0,546.10663822]
[1644289011088,40.19306446,117.06,117.0,546.10663822]
[1644289011289,23.6272,117.07,117.0,546.10663822]
[1644289011490,12.8215,117.06,117.0,546.13063822]
[1644289012292,56.80698168,117.06,117.0,546.13063822]
[1644289012494,57.05698168,117.06,117.0,546.13063822]
[1644289012696,13.0715,117.06,117.0,546.13063822]
[1644289013296,25.3615,117.06,117.0,500.024]
[1644289014196,43.18238551,117.05,117.0,535.00868075]
[1644289014398,12.8242,117.04,117.0,535.00868075]
[1644289014600,12.8242,117.04,117.0,534.98468075]
[1644289017319,12.8242,117.04,117.0,500.0]
[1644289018319,35.9720405,117.03,117.0,500.0]
[1644289018519,12.8259,117.02,117.0,500.0]
[1644289018921,12.8259,117.02,117.0,80.5157956]
[1644289019121,12.8259,117.02,116.96,0.024]
[1644289019122,12.29,117.01,116.96,0.024]
[1644289019321,12.29,117.01,116.83,25.67268967]
[1644289019322,14.2866134,116.85,116.83,0.90602901]
[1644289019522,14.2866134,116.85,116.84,6.06429997]
[1644289019722,14.2866134,116.85,116.84,11.97048213]
[1644289019921,14.2866134,116.85,116.84,52.70297024]
[1644289020126,14.2866134,116.85,116.84,7.90618216]
[1644289020323,1.34e-05,116.85,116.84,7.90618216]
[1644289021524,1.34e-05,116.85,116.84,16.93838213]
[1644289021724,1.34e-05,116.85,116.84,17.18838213]
[1644289022124,1.34e-05,116.85,116.84,17.72951913]
[1644289023327,1.34e-05,116.85,116.84,18.26161912]
[1644289023724,1.34e-05,116.85,116.84,18.01161912]
[1644289024526,1.34e-05,116.85,116.84,19.89693806]
[1644289024826,4.4687462,116.95,116.84,19.89693806]
[1644289025124,4.4687462,116.95,116.84,62.67033806]
[1644289025325,4.4687462,116.95,116.85,22.684]
[1644289025528,4.4687462,116.95,116.85,65.25545315]
[1644289025725,42.7881,116.97,116.86,7.90618216]
[1644289026028,2.12097896,116.95,116.86,8.44731916]
[1644289026226,12.29,116.94,116.86,8.44731916]
[1644289026424,12.8404,116.92,116.86,8.44731916]
[1644289026625,12.29,116.91,116.86,8.44731916]
[1644289028226,25.1302,116.91,116.86,8.44731916]
[1644289029632,25.1302,116.91,116.86,56.38819652]
[1644289029831,25.1302,116.91,116.86,8.44731916]
[1644289030830,25.1302,116.91,116.86,45.8511703]
[1644289032530,25.3802,116.91,116.86,45.8511703]
[1644289035034,12.54,116.91,116.86,45.8511703]
[1644289035837,12.29,116.91,116.86,45.8511703]
[1644289036036,25.1282,116.93,116.86,45.8511703]
[1644289036240,25.1282,116.93,116.86,45.8751703]
[1644289036639,2.12097896,116.92,116.83,0.90602901]
[1644289036837,12.843,116.9,116.83,0.90602901]
[1644289037036,25.133,116.9,116.83,0.90602901]
[1644289037638,25.133,116.9,116.84,44.39558117]
[1644289039239,25.383,116.9,116.84,44.39558117]
[1644289041541,25.133,116.9,116.84,44.39558117]
[1644289041740,12.29,116.9,116.84,44.39558117]
[1644289041941,25.129,116.92,116.84,44.39558117]
[1644289042143,25.129,116.92,116.9,0.60661077]
[1644289042441,2.50009997,116.91,116.9,34.87958735]
[1644289042641,2.50009997,116.91,116.9,37.91178732]
[1644289043040,12.29,116.92,116.9,38.44388731]
[1644289043843,2.50009997,116.91,116.9,38.44388731]
[1644289044341,12.29,116.92,116.9,38.44388731]
[1644289044740,12.54,116.92,116.9,38.44388731]
[1644289044943,12.8375,116.93,116.9,38.44388731]
[1644289045145,12.8356,116.95,116.9,38.44388731]
[1644289045444,42.7826,116.99,116.9,51.17588731]
[1644289045445,12.29,116.99,116.9,51.17588731]
[1644289045642,35.9964,117.01,116.91,1.89064672]
[1644289045842,35.9964,117.01,116.91,22.572]
[1644289046042,12.8312,116.99,116.92,45.87404261]
[1644289046243,25.1212,116.99,116.92,45.87404261]
[1644289047543,25.3712,116.99,116.92,45.87404261]
[1644289051750,25.3712,116.99,116.92,45.89804261]
[1644289052147,25.3712,116.99,116.97,0.60661077]
[1644289052547,2.50009997,116.98,116.97,0.60661077]
[1644289054352,2.50009997,116.98,116.97,0.5473585]
[1644289057153,12.8312,116.99,116.97,3.65632685]
[1644289057353,12.8312,116.99,116.97,0.5473585]
[1644289057752,13.0812,116.99,116.97,0.5473585]
[1644289059655,12.8312,116.99,116.97,0.5473585]
[1644289060754,2.50009997,116.98,116.97,0.5473585]
[1644289064357,2.75009997,116.98,116.97,0.5473585]
[1644289065759,2.50009997,116.98,116.97,0.5473585]
[1644289066362,12.8312,116.99,116.97,3.57955847]
[1644289066860,12.8312,116.99,116.98,46.75217411]
[1644289068062,12.8292,117.01,116.98,46.75217411]
[1644289069162,12.8292,117.01,116.99,3.03219997]
[1644289069361,12.8292,117.01,117.0,37.12242143]
[1644289069563,13.0792,117.01,117.0,37.12242143]
[1644289070863,12.29,117.04,117.0,37.12242143]
[1644289071266,55.0432,117.06,117.0,37.12242143]
[1644289072066,55.0432,117.06,117.0,37.66977993]
[1644289072265,12.8257,117.04,117.0,37.66977993]
[1644289072468,12.8257,117.04,117.0,0.5473585]
[1644289073071,25.1157,117.04,117.0,0.5473585]
[1644289073272,25.3657,117.04,117.0,0.5473585]
[1644289074270,25.3657,117.04,116.99,48.41824788]
[1644289074870,25.3657,117.04,116.97,23.174]
[1644289075871,25.3657,117.04,116.98,44.96410689]
[1644289077173,25.3657,117.04,116.96,24.7383]
[1644289077374,27.48667896,117.04,116.96,24.7383]
[1644289077978,27.48667896,117.04,116.95,0.024]
[1644289078175,12.8332,117.0,116.91,40.82379808]
[1644289078376,12.29,116.99,116.91,40.82379808]
[1644289078576,12.29,116.99,116.92,0.024]
[1644289078779,12.29,116.99,116.91,40.84779808]
[1644289079177,12.8341,116.97,116.91,40.84779808]
[1644289079376,12.29,116.99,116.91,40.84779808]
[1644289079578,12.29,116.99,116.91,41.09779808]
[1644289080178,12.29,116.99,116.91,40.84779808]
[1644289080580,25.121,116.99,116.91,53.67849808]
[1644289080995,25.371,116.99,116.91,53.67849808]
[1644289082998,25.371,116.99,116.91,40.84779808]
[1644289086899,34.15382046,116.99,116.91,40.84779808]
[1644289091703,46.97582046,116.99,116.91,40.84779808]
[1644289094806,46.97582046,116.99,116.91,0.024]
[1644289095007,224.07172046,116.99,116.87,0.024]
[1644289095807,224.07172046,116.99,116.87,43.48540926]
[1644289096409,224.07172046,116.99,116.89,42.57110782]
[1644289096609,224.07172046,116.99,116.9,0.024]
[1644289097007,223.82172046,116.99,116.9,0.024]
[1644289097208,223.82172046,116.99,116.91,40.32325351]
[1644289097410,238.36228817,116.99,116.91,40.32325351]
[1644289097608,238.36228817,116.99,116.91,40.34725351]
[1644289097807,40.30075422,116.97,116.91,40.34725351]
[1644289098008,25.1275,116.96,116.91,40.34725351]
[1644289099012,25.1275,116.96,116.91,40.32325351]
[1644289100015,25.1275,116.96,116.87,23.8037]
[1644289100716,25.3775,116.96,116.87,23.8037]
[1644289101017,25.3775,116.96,116.88,37.52694586]
[1644289101417,25.3775,116.96,116.95,0.5473585]
[1644289101615,27.87759997,116.96,116.95,0.5473585]
[1644289106217,25.1275,116.96,116.95,3.57955847]
[1644289106419,12.8375,116.96,116.95,3.57955847]
[1644289109528,12.8318,116.97,116.95,3.57955847]
[1644289109726,13.0818,116.97,116.95,3.57955847]
[1644289110528,13.0818,116.97,116.96,42.77181932]
[1644289111028,13.0818,116.97,116.96,43.30391931]
[1644289112029,15.58189997,116.97,116.95,3.57955847]
[1644289112230,15.58189997,116.97,116.95,0.5473585]
[1644289113032,15.58189997,116.97,116.95,45.66711545]
[1644289113928,13.0818,116.97,116.95,45.66711545]
[1644289114431,13.0818,116.97,116.95,0.5473585]
[1644289115451,13.0818,116.97,116.95,39.59393627]
[1644289115651,13.0818,116.97,116.95,0.5473585]
[1644289115853,14.79009997,116.96,116.95,0.5473585]
[1644289116051,27.62589997,116.96,116.95,0.5473585]
[1644289119754,27.87589997,116.96,116.95,0.5473585]
[1644289120252,27.62589997,116.96,116.95,0.5473585]
[1644289123856,27.87589997,116.96,116.95,0.5473585]
[1644289126058,25.1258,116.96,116.95,3.57955847]
[1644289126259,12.55248023,117.02,116.95,3.57955847]
[1644289126459,10.18716711,117.02,116.96,39.93931967]
[1644289126660,38.0907474,117.03,116.96,39.93931967]
[1644289126863,23.80733428,117.03,116.96,39.93931967]
[1644289127559,12.8297,117.0,116.96,39.93931967]
[1644289129264,13.0797,117.0,116.96,39.93931967]
[1644289134766,12.827,117.01,116.96,39.93931967]
[1644289134966,12.827,117.01,116.96,50.86131967]
[1644289136166,13.077,117.01,116.96,50.86131967]
[1644289140473,13.077,117.01,116.96,63.68751967]
[1644289140674,12.827,117.01,116.96,63.68751967]
[1644289140875,12.8256,117.02,116.96,63.68751967]
[1644289142074,12.8256,117.02,116.99,0.5473585]
[1644289142281,12.8256,117.02,116.99,36.9787947]
[1644289142879,12.8256,117.02,117.0,3.56429996]
[1644289143781,12.8256,117.02,117.01,45.65599059]
[1644289144183,15.57569997,117.02,117.01,45.65599059]
[1644289145188,13.0756,117.02,117.01,45.65599059]
[1644289146094,13.0756,117.02,117.0,3.56429996]
[1644289146490,2.50009997,117.01,117.0,3.56429996]
[1644289146688,15.32929997,117.01,116.99,0.5473585]
[1644289147089,27.61929997,117.01,116.99,0.5473585]
[1644289147695,30.92806861,117.01,116.99,0.5473585]
[1644289149004,1.18778968,117.0,116.99,0.5473585]
[1644289149205,14.02028968,117.0,116.99,0.5473585]
[1644289149905,26.31028968,117.0,116.99,0.5473585]
[1644289151203,26.56028968,117.0,116.99,0.5473585]
[1644289151406,26.31028968,117.0,116.99,0.5473585]
[1644289152806,26.56028968,117.0,116.99,0.5473585]
[1644289153506,26.56028968,117.0,116.96,41.89222181]
[1644289154707,26.56028968,117.0,116.91,24.2419]
[1644289154908,1.18778968,116.99,116.91,24.2419]
[1644289155107,12.8333,116.97,116.91,24.2419]
[1644289155708,12.8333,116.97,116.92,40.13888822]
[1644289161719,12.8304,116.98,116.92,40.13888822]
[1644289162419,13.0804,116.98,116.92,40.13888822]
[1644289162619,13.0804,116.98,116.92,52.96928822]
[1644289162819,0.25,116.98,116.92,52.96928822]
[1644289163221,13.0795,116.99,116.92,52.96928822]
[1644289163922,0.25,116.99,116.92,52.96928822]
[1644289164122,12.8284,117.0,116.93,23.0383]
[1644289164322,1.18778968,117.01,116.95,12.827]
[1644289164523,1.18778968,117.02,116.95,12.827]
[1644289164826,1.18778968,117.02,116.96,71.94164325]
[1644289165324,12.827,117.01,116.96,71.94164325]
[1644289165526,1.18778968,117.03,116.96,84.76804325]
[1644289165724,1.18778968,117.03,116.96,85.01804325]
[1644289165924,2.40457679,117.06,116.96,85.01804325]
[1644289165925,1.18778968,117.04,116.96,85.01804325]
[1644289166124,1.18778968,117.04,116.96,86.91401518]
[1644289166324,1.18778968,117.05,116.96,86.91401518]
[1644289166726,1.22705335,117.06,116.96,86.91401518]
[1644289166926,0.03926367,117.05,116.96,86.91401518]
[1644289167627,14.00948968,117.07,116.96,86.91401518]
[1644289167827,0.03904842,117.05,116.96,86.91401518]
[1644289168228,0.03904842,117.06,116.96,86.91401518]
[1644289169430,0.03904842,117.06,116.96,92.91401518]
[1644289171233,0.03904842,117.06,116.96,91.01804325]
[1644289171432,10.36074842,117.07,116.97,1.89597164]
[1644289171632,0.03904844,117.05,117.0,12.8202]
[1644289171832,0.03904844,117.05,117.01,43.40680212]
[1644289172030,1.18778968,117.09,117.01,43.40680212]
[1644289172031,0.03904844,117.08,117.01,43.40680212]
[1644289172232,0.03904844,117.08,117.01,43.65680212]
[1644289172730,0.03904844,117.08,117.03,0.5473585]
[1644289172930,12.82,117.08,117.04,45.28408131]
[1644289173331,13.07,117.08,117.04,45.28408131]
[1644289174435,13.07,117.08,117.03,0.5473585]
[1644289174657,2.12097896,117.07,117.03,0.5473585]
[1644289174840,12.8221,117.06,117.03,0.5473585]
[1644289175035,12.8221,117.06,117.04,3.56429996]
[1644289175234,12.3221,117.06,117.04,3.56429996]
[1644289175434,0.28904844,117.08,117.04,3.56429996]
[1644289175632,0.25,117.08,117.04,3.56429996]
[1644289175832,12.8212,117.07,117.04,3.56429996]
[1644289176035,12.8212,117.07,117.05,40.11504341]
[1644289176233,2.50009997,117.06,117.05,40.11504341]
[1644289177034,15.32239997,117.06,117.04,3.56429996]
[1644289177734,15.32239997,117.06,117.03,0.5473585]
[1644289178033,15.32239997,117.06,117.04,42.19026884]
[1644289179837,15.32239997,117.06,117.05,3.03219997]
[1644289180637,56.21978968,117.09,117.04,42.19026884]
[1644289180938,0.03904844,117.08,117.04,42.19026884]
[1644289181135,55.032,117.09,117.04,42.19026884]
[1644289181537,12.8211,117.07,117.04,42.19026884]
[1644289182541,12.8211,117.07,117.05,3.03219997]
[1644289183336,12.8211,117.07,117.06,47.471265]
[1644289183539,12.8211,117.07,117.06,50.50346497]
[1644289183738,12.8211,117.07,117.06,3.03219997]
[1644289184138,13.0711,117.07,117.06,3.03219997]
[1644289184338,13.0711,117.07,117.05,3.03219997]
[1644289184743,13.0711,117.07,117.05,39.46169874]
[1644289187040,13.0711,117.07,117.03,0.5473585]
[1644289188044,13.0711,117.07,117.04,40.4363664]
[1644289191449,14.25888968,117.07,117.04,40.4363664]
[1644289193650,1.18778968,117.06,117.04,40.4363664]
[1644289194451,1.18778968,117.06,117.05,6.06439994]
[1644289196754,1.18778968,117.06,117.04,40.4363664]
[1644289197265,1.18778968,117.05,117.04,39.9363664]
[1644289198769,1.18778968,117.06,117.04,39.9363664]
[1644289199170,1.18778968,117.06,117.05,6.06439994]
[1644289200777,27.51376156,117.09,117.05,6.06439994]
[1644289200972,0.03904844,117.1,117.05,6.06439994]
[1644289201177,4.79503564,117.11,117.05,30.62569994]
[1644289201772,4.79503564,117.11,117.06,43.77432689]
[1644289201972,4.7559872,117.11,117.06,43.77432689]
[1644289202173,2.39067408,117.11,117.06,43.77432689]
[1644289202374,2.39067408,117.11,117.05,24.5613]
[1644289202573,12.8183,117.1,117.03,0.5473585]
[1644289202774,25.74479816,117.1,117.03,0.5473585]
[1644289203074,2.36531312,117.07,117.03,5.85e-05]
[1644289203276,12.29,117.06,117.03,5.85e-05]
[1644289203473,12.8292,117.05,117.03,5.85e-05]
[1644289203677,42.2090012,117.05,117.03,5.85e-05]
[1644289203973,57.25027436,117.05,117.03,5.85e-05]
[1644289205184,59.37125332,117.05,117.03,5.85e-05]
[1644289205382,12.8319,117.01,116.93,22.9001]
[1644289205580,12.29,117.0,116.93,22.9001]
[1644289206180,12.29,117.0,116.94,43.12440889]
[1644289206581,12.8295,117.0,116.94,43.12440889]
[1644289207982,43.45153351,116.99,116.92,0.024]
[1644289208184,12.8335,116.97,116.92,0.024]
[1644289208387,12.8335,116.97,116.91,0.024]
[1644289209188,36.1532176,116.97,116.9,45.12319672]
[1644289209386,36.1532176,116.97,116.91,0.024]
[1644289209786,48.4432176,116.97,116.91,0.024]
[1644289212290,2.12097896,116.96,116.88,0.024]
[1644289212489,12.8408,116.94,116.86,0.024]
[1644289212690,25.1308,116.94,116.86,0.024]
[1644289212990,27.25177896,116.94,116.86,0.024]
[1644289213189,27.25177896,116.94,116.86,37.6537198]
[1644289213391,27.25177896,116.94,116.87,0.024]
[1644289213590,23.88195367,116.93,116.86,37.1537198]
[1644289213889,23.88195367,116.93,116.85,24.8051]
[1644289213890,12.8397,116.91,116.83,24.10902901]
[1644289214090,12.8397,116.91,116.83,0.90602901]
[1644289214292,25.1297,116.91,116.83,0.90602901]
[1644289214491,25.3797,116.91,116.83,0.90602901]
[1644289214890,25.3797,116.91,116.84,39.20377593]
[1644289215290,25.1283,116.93,116.84,39.45377593]
[1644289215490,25.1283,116.93,116.84,58.29097593]
[1644289215690,12.29,116.95,116.84,39.45377593]
[1644289215890,12.29,116.94,116.84,39.20377593]
[1644289216290,55.0922,116.94,116.84,39.45377593]
[1644289216790,55.0922,116.94,116.86,43.9220051]
[1644289217593,12.838,116.93,116.86,43.9220051]
[1644289217991,12.29,116.92,116.86,43.9220051]
[1644289218192,49.99918689,116.92,116.86,42.9220051]
[1644289218394,65.89097896,116.92,116.86,42.9220051]
[1644289218597,12.8436,116.91,116.86,42.9220051]
[1644289218793,12.8436,116.91,116.83,0.90602901]
[1644289218794,27.25457896,116.91,116.83,0.90602901]
[1644289218996,2.12097896,116.9,116.83,0.90602901]
[1644289219193,12.29,116.89,116.83,0.90602901]
[1644289219396,55.1135,116.89,116.83,0.90602901]
[1644289219595,12.29,116.89,116.83,0.90602901]
[1644289219795,12.29,116.89,116.84,36.52971953]
[1644289219993,37.01623856,116.89,116.83,0.90602901]
[1644289220196,12.29,116.89,116.83,0.90602901]
[1644289220894,25.1336,116.89,116.83,0.90602901]
[1644289221097,25.1336,116.89,116.84,41.69599479]
[1644289221795,25.3836,116.89,116.84,41.69599479]
[1644289222696,27.50457896,116.89,116.84,41.69599479]
[1644289222997,25.3836,116.89,116.84,41.69599479]
[1644289224298,25.1336,116.89,116.83,0.90602901]
[1644289224500,27.25457896,116.89,116.83,0.90602901]
[1644289225196,34.5033306,116.88,116.83,0.90602901]
[1644289225397,12.8459,116.87,116.83,0.90602901]
[1644289227801,27.25687896,116.87,116.83,0.90602901]
[1644289228404,25.1359,116.87,116.83,0.90602901]
[1644289228999,33.74392051,116.86,116.83,0.90602901]
[1644289229201,46.03392051,116.86,116.77,1.3734442]
[1644289229402,12.8483,116.85,116.77,1.3734442]
[1644289229605,14.96927896,116.85,116.77,1.3734442]
[1644289229803,2.12097896,116.84,116.77,1.3734442]
[1644289230004,46.35568855,116.83,116.77,1.3734442]
[1644289230605,61.61760559,116.83,116.77,1.3734442]
[1644289230804,71.12060559,116.83,116.77,1.3734442]
[1644289231028,12.852,116.82,116.77,1.3734442]
[1644289231228,15.22219481,116.86,116.77,1.3734442]
[1644289231429,12.29,116.85,116.77,1.3734442]
[1644289232028,35.27102017,116.84,116.78,42.12009041]
[1644289232427,12.29,116.85,116.78,42.12009041]
[1644289232629,12.849,116.84,116.78,42.12009041]
[1644289233529,12.29,116.85,116.78,42.12009041]
[1644289233728,42.8201,116.9,116.78,42.37009041]
[1644289233930,12.29,116.92,116.78,42.37009041]
[1644289234530,46.194055,116.91,116.78,42.12009041]
[1644289234729,12.29,116.9,116.8,43.11408565]
[1644289234929,21.61555406,116.89,116.8,43.11408565]
[1644289235128,23.73653302,116.89,116.8,43.11408565]
[1644289235429,14.41097896,116.89,116.8,43.11408565]
[1644289235828,12.29,116.89,116.8,43.11408565]
[1644289236029,25.1335,116.89,116.8,43.11408565]
[1644289236228,25.1335,116.89,116.8,43.36408565]
[1644289236433,25.1335,116.89,116.82,48.43094769]
[1644289237031,52.19233937,116.89,116.82,48.43094769]
[1644289237231,27.25447896,116.89,116.82,48.43094769]
[1644289237633,25.1335,116.89,116.82,48.43094769]
[1644289238331,25.3835,116.89,116.82,48.43094769]
[1644289238733,50.71535391,116.89,116.82,48.43094769]
[1644289238933,52.83633287,116.89,116.82,48.43094769]
[1644289240234,27.50447896,116.89,116.82,48.43094769]
[1644289242035,27.50447896,116.89,116.86,4.6217473]
[1644289242534,25.3835,116.89,116.86,4.6217473]
[1644289243134,25.3835,116.89,116.87,6.06439994]
[1644289243334,25.3835,116.89,116.87,6.03019994]
[1644289244040,25.3835,116.89,116.86,4.6217473]
[1644289244637,24.8835,116.89,116.86,4.6217473]
[1644289246241,24.8835,116.89,116.87,6.03019994]
[1644289246441,13.0935,116.89,116.87,6.03019994]
[1644289246644,13.0935,116.89,116.87,47.5200298]
[1644289247241,13.0935,116.89,116.88,2.99799997]
[1644289248542,13.1277,116.89,116.88,2.99799997]
[1644289248743,13.1277,116.89,116.86,4.6217473]
[1644289249144,13.1277,116.89,116.86,45.92638212]
[1644289249942,13.0935,116.89,116.87,2.99799997]
[1644289250146,14.41097896,116.91,116.88,3.03219997]
[1644289250345,14.96177896,116.91,116.87,3.02199997]
[1644289250744,14.96177896,116.91,116.87,2.99799997]
[1644289250945,14.96177896,116.91,116.88,39.84443375]
[1644289251347,14.96177896,116.91,116.87,0.024]
[1644289251548,14.96177896,116.91,116.86,4.6217473]
[1644289251749,14.96177896,116.91,116.84,0.024]
[1644289252545,14.96177896,116.91,116.84,35.41630486]
[1644289252845,14.96177896,116.91,116.85,0.024]
[1644289253747,15.21177896,116.91,116.85,0.024]
[1644289255146,29.08414044,116.91,116.85,0.024]
[1644289255551,14.41097896,116.9,116.85,0.024]
[1644289255748,12.8435,116.89,116.85,0.024]
[1644289257450,15.21447896,116.89,116.84,35.39230486]
[1644289258752,27.50447896,116.89,116.84,35.39230486]
[1644289260955,25.3835,116.89,116.84,35.39230486]
[1644289261154,25.1335,116.89,116.84,35.39230486]
[1644289262053,25.1335,116.89,116.87,4.6217473]
[1644289262253,25.1335,116.89,116.87,43.44858679]
[1644289262455,25.1677,116.89,116.87,43.44858679]
[1644289263556,25.1677,116.89,116.88,6.03019994]
[1644289263852,25.1677,116.89,116.87,43.44858679]
[1644289264455,25.1677,116.89,116.87,4.6217473]
[1644289264681,27.28867896,116.89,116.87,4.6217473]
[1644289264958,41.16104044,116.89,116.87,4.6217473]
[1644289265758,41.41104044,116.89,116.87,4.6217473]
[1644289266355,41.41104044,116.89,116.87,3.6217473]
[1644289267158,39.29006148,116.89,116.87,3.6217473]
[1644289268664,39.29006148,116.89,116.87,50.02788919]
[1644289270162,39.29006148,116.89,116.87,3.6217473]
[1644289271059,41.41104044,116.89,116.87,3.6217473]
[1644289271460,39.29006148,116.89,116.87,3.6217473]
[1644289272261,39.04006148,116.89,116.87,3.6217473]
[1644289272561,39.04006148,116.89,116.87,3.1217473]
[1644289273468,39.04006148,116.89,116.87,9.15194724]
[1644289273761,39.00586148,116.89,116.87,9.15194724]
[1644289274562,39.00586148,116.89,116.88,34.80622405]
[1644289274763,12.8435,116.89,116.88,34.80622405]
[1644289274964,71.55174044,116.92,116.88,34.80622405]
[1644289274965,12.8396,116.91,116.88,34.80622405]
[1644289275166,12.29,116.94,116.88,34.80622405]
[1644289275370,52.89155238,116.96,116.88,34.80622405]
[1644289275567,63.24633926,116.96,116.88,34.80622405]
[1644289275865,50.52623926,116.96,116.88,34.80622405]
[1644289276066,12.8363,116.94,116.9,48.03958357]
[1644289276867,12.8363,116.94,116.87,3.1217473]
[1644289277066,28.75741822,116.94,116.87,3.1217473]
[1644289277267,12.29,116.93,116.87,3.1217473]
[1644289277467,12.8412,116.92,116.87,3.1217473]
[1644289277666,14.96217896,116.92,116.87,3.1217473]
[1644289277869,38.29555672,116.91,116.87,3.1217473]
[1644289278268,81.35175672,116.91,116.87,3.1217473]
[1644289278666,45.17717896,116.91,116.87,3.1217473]
[1644289278868,43.0562,116.91,116.87,3.1217473]
[1644289279168,12.8419,116.9,116.87,3.1217473]
[1644289279368,0.0342,116.89,116.87,3.1217473]
[1644289280495,12.8434,116.88,116.87,3.1217473]
[1644289281886,13.0934,116.88,116.87,3.1217473]
[1644289283389,13.0934,116.88,116.87,6.15394727]
[1644289283589,13.0934,116.88,116.87,3.1217473]
[1644289284090,13.0934,116.88,116.86,44.38500953]